fUSD/lending_fUSD_20250202
["ID","MTS","AMOUNT","RATE_DAILY","PERIOD"]
[351259484,1738492083111,10000.0,0.0001,2]
[351259485,1738492083135,10000.0,0.0001,2]
[351259486,1738492083569,10000.0,0.0001,2]
[351259487,1738492083599,10000.0,0.0001,2]
[351259488,1738492083623,10000.0,0.0001,2]
[351259489,1738492083647,10000.0,0.0001,2]
[351259490,1738492083670,10000.0,0.0001,2]
[351259491,1738492083692,10000.0,0.0001,2]
[351259492,1738492083717,10000.0,0.0001,2]
[351259493,1738492083740,10000.0,0.0001,2]
[351259494,1738492083764,10000.0,0.0001,2]
[351259495,1738492083791,10000.0,0.0001,2]
[351259496,1738492083817,10000.0,0.0001,2]
[351259497,1738492083840,10000.0,0.0001,2]
[351259498,1738492083864,10000.0,0.0001,2]
[351259499,1738492083887,10000.0,0.0001,2]
[351259500,1738492083910,10000.0,0.0001,2]
[351259501,1738492083934,10000.0,0.0001,2]
[351259502,1738492083956,10000.0,0.0001,2]
[351259503,1738492083979,10000.0,0.0001,2]
[351259504,1738492084002,10000.0,0.0001,2]
[351259505,1738492084025,10000.0,0.0001,2]
[351259506,1738492084050,10000.0,0.0001,2]
[351259507,1738492084074,10000.0,0.0001,2]
[351259508,1738492084098,10000.0,0.0001,2]
[351259509,1738492084123,10000.0,0.0001,2]
[351259510,1738492084147,10000.0,0.0001,2]
[351259511,1738492084170,10000.0,0.0001,2]
[351259512,1738492084197,10000.0,0.0001,2]
[351259513,1738492084220,10000.0,0.0001,2]
[351259514,1738492084245,10000.0,0.0001,2]
[351259515,1738492084270,10000.0,0.0001,2]
[351259516,1738492084293,10000.0,0.0001,2]
[351259517,1738492084317,10000.0,0.0001,2]
[351259518,1738492084341,10000.0,0.0001,2]
[351259519,1738492084366,10000.0,0.0001,2]
[351259520,1738492084391,10000.0,0.0001,2]
[351259521,1738492084415,10000.0,0.0001,2]
[351259522,1738492084437,10000.0,0.0001,2]
[351259523,1738492084461,10000.0,0.0001,2]
[351259524,1738492084485,10000.0,0.0001,2]
[351259525,1738492084509,10000.0,0.0001,2]
[351259526,1738492084533,10000.0,0.0001,2]
[351259527,1738492084557,10000.0,0.0001,2]
[351259528,1738492084582,10000.0,0.0001,2]
[351259529,1738492084609,10000.0,0.0001,2]
[351259530,1738492084636,10000.0,0.0001,2]
[351259531,1738492084659,10000.0,0.0001,2]
[351259532,1738492084684,10000.0,0.0001,2]
[351259533,1738492084708,10000.0,0.0001,2]
[351259534,1738492084730,10000.0,0.0001,2]
[351259535,1738492084753,10000.0,0.0001,2]
[351259536,1738492084775,10000.0,0.0001,2]
[351259537,1738492084798,10000.0,0.0001,2]
[351259538,1738492084820,10000.0,0.0001,2]
[351259539,1738492084843,10000.0,0.0001,2]
[351259540,1738492084864,10000.0,0.0001,2]
[351259541,1738492084893,80932.98551781,0.0001,2]
[351259544,1738492119463,-500.0,9.999e-05,2]
[351259545,1738492119484,-500.0,9.999e-05,2]
[351259546,1738492119505,-500.0,9.999e-05,2]
[351259547,1738492119526,-500.0,9.999e-05,2]
[351259548,1738492119547,-437.24141228,9.999e-05,2]
[351259549,1738492119568,-7562.75858772,0.0001,2]
[351259550,1738492119705,-10000.0,0.0001,2]
[351259551,1738492119752,-10000.0,0.0001,2]
[351259552,1738492119912,-10000.0,0.0001,2]
[351259553,1738492120386,-10000.0,0.0001,2]
[351259554,1738492120800,-10000.0,0.0001,2]
[351259555,1738492121129,-10000.0,0.0001,2]
[351259556,1738492121632,-10000.0,0.0001,2]
[351259557,1738492122119,-10000.0,0.0001,2]
[351259558,1738492122512,-10000.0,0.0001,2]
[351259559,1738492125520,-10000.0,0.0001,2]
[351259560,1738492125862,-10000.0,0.0001,2]
[351259561,1738492126270,-10000.0,0.0001,2]
[351259562,1738492126792,-10000.0,0.0001,2]
[351259563,1738492127026,-10000.0,0.0001,2]
[351259564,1738492127424,-10000.0,0.0001,2]
[351259565,1738492127739,-10000.0,0.0001,2]
[351259566,1738492131307,-10000.0,0.0001,2]
[351259567,1738492131743,-10000.0,0.0001,2]
[351259568,1738492132206,-10000.0,0.0001,2]
[351259569,1738492132647,-10000.0,0.0001,2]
[351259570,1738492133158,-10000.0,0.0001,2]
[351259571,1738492133612,-10000.0,0.0001,2]
[351259572,1738492133997,-10000.0,0.0001,2]
[351259573,1738492134403,-10000.0,0.0001,2]
[351259574,1738492134836,-10000.0,0.0001,2]
[351259575,1738492135293,-10000.0,0.0001,2]
[351259576,1738492135698,-10000.0,0.0001,2]
[351259577,1738492136154,-10000.0,0.0001,2]
[351259578,1738492136696,-10000.0,0.0001,2]
[351259579,1738492137137,-10000.0,0.0001,2]
[351259580,1738492137820,-10000.0,0.0001,2]
[351259581,1738492139006,-10000.0,0.0001,2]
[351259582,1738492145753,-1469.0,0.0001,2]
[351259584,1738492164461,165.92,0.00016658,30]
[351259585,1738492183504,46703.0,9.606e-05,2]
[351259597,1738492232216,-150.0,9.999e-05,2]
[351259598,1738492232227,-49363.66056821,0.0001,2]
[351259599,1738492232378,-276.9999995,0.0001,2]
[351259600,1738492232390,-993.82,0.0001,2]
[351259601,1738492232439,-357.680135,0.0001,2]
[351259602,1738492232451,-1565.51600315,0.0001,2]
[351259603,1738492232492,-454.92529219,0.0001,2]
[351259604,1738492232546,-320.49018166,0.0001,2]
[351259605,1738492232558,-309.67053173,0.0001,2]
[351259606,1738492232601,-2368.71138789,0.0001,2]
[351259607,1738492232612,-3040.89698536,0.0001,2]
[351259665,1738492237227,-5196.42540613,0.0001,2]
[351259667,1738492237241,-4607.18359168,0.0001,2]
[351259672,1738492237278,-10441.7850705,0.0001,2]
[351259743,1738492238073,-1730.02566665,0.0001,2]
[351259750,1738492238129,-29751.22656977,0.0001,2]
[351259752,1738492238141,-500.0,0.0001,2]
[351259755,1738492238152,-727.95966854,0.0001,2]
[351259760,1738492238198,-6262.1637343,0.0001,2]
[351259762,1738492238210,-520.45876736,0.0001,2]
[351259767,1738492238251,-15838.17875957,0.0001,2]
[351259769,1738492238262,-9576.47302326,0.0001,2]
[351259774,1738492238438,-20.29162425,0.0001,2]
[351259775,1738492238450,-214423.21289165,0.0001,2]
[351259776,1738492238463,-1000.82847996,0.0001,2]
[351259777,1738492238474,-1414.93921483,0.0001,2]
[351259795,1738492240250,-530.69259837,0.0001,2]
[351259796,1738492240261,-270.00005,0.0001,2]
[351259815,1738492241294,-9878.62767785,0.0001,2]
[351259816,1738492241306,-45323.10608051,0.0001,2]
[351259817,1738492241331,-15189.06000256,0.0001,2]
[351259818,1738492241343,-2407.15091,0.0001,2]
[351259819,1738492241359,-505.7052,0.0001,2]
[351259820,1738492241370,-643.88842845,0.0001,2]
[351259821,1738492241382,-6745.56485622,0.0001,2]
[351259822,1738492241394,-418.54789703,0.0001,2]
[351259823,1738492241484,-198953.9859981,0.0001,2]
[351259824,1738492241495,-1988.0,0.0001,2]
[351259825,1738492241533,-515.40624026,0.0001,2]
[351259826,1738492241545,-271.99,0.0001,2]
[351259827,1738492241562,-667.37843438,0.0001,2]
[351259828,1738492241574,-1898.39,0.0001,2]
[351259829,1738492241594,-10225.50876276,0.0001,2]
[351259830,1738492241605,-1300.34629086,0.0001,2]
[351259869,1738492243392,-11335.78168635,0.0001,2]
[351259870,1738492243403,-5988.990005,0.0001,2]
[351259871,1738492243416,-3851.88067642,0.0001,2]
[351259872,1738492243428,-34969.17093506,0.0001,2]
[351259873,1738492243589,-2599.444995,0.0001,2]
[351259874,1738492243724,-41762.71462388,0.0001,2]
[351259875,1738492243736,-177958.80367437,0.0001,2]
[351259876,1738492243748,-273.79713915,0.0001,2]
[351259877,1738492243759,-1013873.89315446,0.0001,2]
[351259926,1738492246224,-2917.48794505,0.0001,2]
[351259927,1738492246366,-768.11190088,0.0001,2]
[351259928,1738492246412,-2881.15193,0.0001,2]
[351259929,1738492246561,-330.669,0.0001,2]
[351259930,1738492246659,-18602.46334892,0.0001,2]
[351260017,1738492296346,168.34,8.46e-05,2]
[351260018,1738492335079,1662.07329133,0.000105,10]
[351260019,1738492456100,-150.0,9.999e-05,2]
[351260020,1738492456123,-791.89,9.999e-05,2]
[351260021,1738492456147,-300.0,9.999e-05,2]
[351260022,1738492456171,-53758.11,0.0001,2]
[351260023,1738492483114,892.34,8.241e-05,2]
[351260024,1738492563481,-150.0,9.999e-05,2]
[351260025,1738492563506,-49850.0,0.0001,2]
[351260026,1738492569383,-50000.0,0.0001,2]
[351260027,1738492575285,-50000.0,0.0001,2]
[351260028,1738492583045,-20000.0,0.0001,2]
[351260029,1738492695547,-10043.82172699,9.999e-05,2]
[351260030,1738492695574,-39956.17827301,0.0001,2]
[351260031,1738492703037,-50000.0,0.0001,2]
[351260032,1738492714908,-50000.0,0.0001,2]
[351260033,1738492730128,-67000.0,0.0001,2]
[351260034,1738492749263,-300.0,9.999e-05,2]
[351260035,1738492749290,-150.0,9.999e-05,2]
[351260036,1738492749316,-89550.0,0.0001,2]
[351260040,1738493003585,8067.87,9.852e-05,2]
[351260041,1738493028707,5000.0,0.00023,120]
[351260042,1738493166459,1000.0,9.822e-05,2]
[351260043,1738493179469,813.7,9.752e-05,2]
[351260044,1738493200541,640.22,9.768e-05,2]
[351260045,1738493211140,-1000.0,9.999e-05,2]
[351260046,1738493211162,-150.0,9.999e-05,2]
[351260047,1738493211184,-3456.50517672,0.0001,2]
[351260048,1738493236889,155.11,0.00016658,30]
[351260050,1738493242990,203.37,9.835e-05,2]
[351260063,1738493433020,-1526.44,9.914e-05,2]
[351260064,1738493433030,-4102.77392962,0.0001,2]
[351260065,1738493433041,-3249.99999999,0.0001,2]
[351260066,1738493433075,-636.98179635,0.0001,2]
[351260067,1738493433088,-14188.71774047,0.0001,2]
[351260068,1738493433100,-22903.99952427,0.0001,2]
[351260069,1738493433111,-32851.25474216,0.0001,2]
[351260070,1738493433129,-34359.61759097,0.0001,2]
[351260071,1738493433139,-156.8113875,0.0001,2]
[351260072,1738493433151,-508.06761322,0.0001,2]
[351260073,1738493433161,-202.39346631,0.0001,2]
[351260074,1738493433171,-686.90098679,0.0001,2]
[351260075,1738493433181,-152.54054012,0.0001,2]
[351260076,1738493433191,-22137.95914381,0.0001,2]
[351260077,1738493433201,-797.81062687,0.0001,2]
[351260078,1738493433211,-162.5,0.00010137,2]
[351260079,1738493433220,-611.7,0.00010137,2]
[351260080,1738493433230,-407.12091188,0.0001014,2]
[351260081,1738493433241,-3731.87,0.00010243,2]
[351260082,1738493433252,-1500.0,0.00010275,2]
[351260083,1738493433262,-2608.16,0.00010337,2]
[351260084,1738493433273,-1333.68,0.00010338,2]
[351260085,1738493433284,-2608.16,0.00010339,2]
[351260086,1738493433295,-2608.16,0.00010342,2]
[351260087,1738493433305,-2608.16,0.00010345,2]
[351260088,1738493433314,-2608.16,0.00010348,2]
[351260089,1738493433324,-2608.16,0.0001035,2]
[351260090,1738493433335,-2608.16,0.00010353,2]
[351260091,1738493433345,-2608.16,0.00010356,2]
[351260092,1738493433355,-15109.19976501,0.00010356,2]
[351260093,1738493433366,-1591.5944406,0.00010356,2]
[351260094,1738493433384,-28974.20579439,0.00010356,2]
[351260095,1738493433394,-2608.16,0.00010358,2]
[351260096,1738493433404,-2608.16,0.00010361,2]
[351260097,1738493433414,-2608.16,0.00010364,2]
[351260098,1738493433424,-2608.16,0.00010367,2]
[351260099,1738493433435,-2608.16,0.00010369,2]
[351260100,1738493433444,-2608.16,0.00010372,2]
[351260101,1738493433454,-2608.16,0.00010375,2]
[351260102,1738493433464,-2608.16,0.00010377,2]
[351260103,1738493433474,-2608.16,0.0001038,2]
[351260104,1738493433484,-503.734,0.0001038,2]
[351260105,1738493433493,-503.734,0.0001038,2]
[351260106,1738493433503,-503.734,0.0001038,2]
[351260107,1738493433513,-503.734,0.0001038,2]
[351260108,1738493433523,-503.734,0.0001038,2]
[351260109,1738493433532,-503.734,0.0001038,2]
[351260110,1738493433542,-503.734,0.0001038,2]
[351260111,1738493433552,-503.734,0.0001038,2]
[351260112,1738493433562,-503.734,0.0001038,2]
[351260113,1738493433571,-503.734,0.0001038,2]
[351260114,1738493433582,-2608.16,0.00010383,2]
[351260115,1738493433592,-2608.16,0.00010386,2]
[351260116,1738493433603,-2608.16,0.00010388,2]
[351260117,1738493433613,-158.31,0.00010409,2]
[351260118,1738493433623,-656.77,0.00010422,2]
[351260119,1738493433632,-892.34,0.00010505,2]
[351260120,1738493433642,-3527.3895,0.0001054,2]
[351260121,1738493433652,-407.12091188,0.00010571,2]
[351260122,1738493433661,-3527.38951,0.0001066,2]
[351260123,1738493433671,-407.12091189,0.00010733,2]
[351260124,1738493433685,-3527.38951,0.0001082,2]
[351260125,1738493433695,-156.81138745,0.000109,2]
[351260126,1738493433704,-3527.38951,0.0001098,2]
[351260127,1738493433714,-150.0,0.00010999,2]
[351260128,1738493433724,-1918.08014442,0.00010999,3]
[351260129,1738493433734,-160953.89926177,0.00011,2]
[351260130,1738493433744,-142613.10441439,0.00011,2]
[351260131,1738493433753,-175.64,0.00011014,2]
[351260132,1738493433763,-1000.0,0.0001105,2]
[351260133,1738493433772,-8108.65677633,0.00011099,2]
[351260134,1738493433782,-8108.65677625,0.00011099,2]
[351260135,1738493433792,-7532.44913691,0.00011099,2]
[351260136,1738493433802,-7532.4491369,0.00011099,2]
[351260137,1738493433811,-7532.4491369,0.00011099,2]
[351260138,1738493433821,-7532.4491369,0.00011099,2]
[351260139,1738493433831,-7532.4491369,0.00011099,2]
[351260140,1738493433840,-8108.65677625,0.00011122,2]
[351260141,1738493433850,-3527.38951,0.0001113,2]
[351260142,1738493433860,-7532.4491369,0.00011173,2]
[351260143,1738493433869,-8108.65677625,0.00011233,2]
[351260144,1738493433879,-3527.38951,0.0001129,2]
[351260145,1738493433889,-8108.65677625,0.00011344,2]
[351260146,1738493433899,-7532.4491369,0.00011355,2]
[351260147,1738493433909,-700.0,0.000114,4]
[351260148,1738493433919,-158.31,0.0001145,2]
[351260149,1738493433928,-8108.65677625,0.00011456,2]
[351260150,1738493433938,-1500.0,0.000115,4]
[351260151,1738493433947,-7532.4491369,0.00011536,2]
[351260152,1738493433958,-8108.65677625,0.00011567,2]
[351260153,1738493433967,-2200.0,0.000116,4]
[351260154,1738493433977,-3000.0,0.000117,4]
[351260155,1738493433986,-7532.4491369,0.00011718,2]
[351260156,1738493433996,-656.77,0.00011724,2]
[351260157,1738493434007,-3800.0,0.000118,4]
[351260158,1738493434017,-156.81138745,0.000119,2]
[351260159,1738493434028,-170.2643368,0.000119,2]
[351260160,1738493434039,-700.0,0.000119,4]
[351260161,1738493434050,-192.29777608,0.000119,2]
[351260162,1738493434061,-7532.4491369,0.000119,2]
[351260163,1738493434070,-984.56880892,0.000119,2]
[351260164,1738493434080,-13834.6099649,0.000119,2]
[351260165,1738493434089,-1174.95610986,0.000119,2]
[351260166,1738493434099,-168.17565331,0.000119,2]
[351260167,1738493434109,-167.0291237,0.00011973,2]
[351260168,1738493434118,-152.3032782,0.00011973,2]
[351260169,1738493434127,-157.32680308,0.00011973,2]
[351260170,1738493434159,-342.67319692,0.00011973,2]
[351260171,1738493434169,-472.96690981,0.00011973,2]
[351260172,1738493434178,-160.29108143,0.00011973,2]
[351260173,1738493434187,-500.56523456,0.00011973,2]
[351260174,1738493434198,-500.18537111,0.00011973,2]
[351260175,1738493434208,-136.60106932,0.00011973,2]
[351260176,1738493434219,-363.39893068,0.00011973,2]
[351260177,1738493434229,-251.54935984,0.00011982,2]
[351260178,1738493434240,-251.54935984,0.00011982,2]
[351260179,1738493434250,-251.54935984,0.0001199,2]
[351260180,1738493434260,-421280.62725148,0.00011992,2]
[351260181,1738493434273,-74231.87295502,0.00011992,2]
[351260182,1738493434285,-11249.74535187,0.00011992,2]
[351260183,1738493434371,-2294.6888097,0.00011992,2]
[351260184,1738493434386,-1305.0,0.00011992,2]
[351260185,1738493434414,-399.77563616,0.00011992,2]
[351260186,1738493434426,-774.34181465,0.00011992,2]
[351260187,1738493434450,-469.1440006,0.00011992,2]
[351260191,1738493438329,-1504.2335393,0.000109,2]
[351260192,1738493438338,-8108.65677625,0.00011678,2]
[351260193,1738493438347,-500.0,0.00011991,2]
[351260194,1738493438356,-500.0,0.00011991,2]
[351260195,1738493438365,-36443.7318892,0.00011992,2]
[351260196,1738493438495,-57969.37605537,0.00011992,2]
[351260197,1738493438506,-164750.36507116,0.00011992,2]
[351260198,1738493438597,-395.92434349,0.00011992,2]
[351260206,1738493440400,-995.25,0.00011257,2]
[351260207,1738493440824,-500.0,0.00011257,2]
[351260208,1738493440835,-8.98353927,0.00011257,2]
[351260209,1738493440845,-8108.65677625,0.00011789,2]
[351260211,1738493440856,-418.45789232,0.00011991,2]
[351260212,1738493440866,-283.78119716,0.00011991,2]
[351260213,1738493440876,-221.59744793,0.00011991,2]
[351260214,1738493440885,-449.40009233,0.00011991,2]
[351260215,1738493440895,-15454.16355474,0.00011992,2]
[351260217,1738493440912,-9048.35015584,0.00011992,2]
[351260240,1738493441138,-181216.74034294,0.00011992,2]
[351260242,1738493441152,-142598.892,0.00011992,2]
[351260244,1738493441166,-67453.80539008,0.00011992,2]
[351260282,1738493443536,-1432.13,0.00011992,2]
[351260283,1738493443590,-395260.06718763,0.00011992,2]
[351260284,1738493443602,-114619.33324086,0.00011992,2]
[351260285,1738493443611,-490481.64922694,0.00011992,2]
[351260286,1738493443736,-9639.19923971,0.00011992,2]
[351260295,1738493446480,-1504.23353927,0.00011614,2]
[351260296,1738493446490,-510.28646073,0.000119,2]
[351260297,1738493446537,-7598.37031552,0.000119,2]
[351260298,1738493446547,-3067.30633105,0.00011992,2]
[351260299,1738493446559,-588.94,0.00011992,2]
[351260300,1738493446674,-274.7999971,0.00011992,2]
[351260301,1738493446688,-939.95000075,0.00011992,2]
[351260302,1738493446699,-1736.72172685,0.00011992,2]
[351260303,1738493446711,-3461.52432869,0.00011992,2]
[351260304,1738493446722,-511.0,0.00011992,2]
[351260305,1738493446740,-2783.2,0.00011992,2]
[351260307,1738493446761,-433.97561987,0.00011992,2]
[351260341,1738493708010,170.93,9.189e-05,2]
[351260343,1738494013286,882.9,9.292e-05,2]
[351260344,1738494094910,7224.91371607,0.0002,120]
[351260345,1738494147920,806.0465003,0.0002,120]
[351260346,1738494208677,1339.64625491,0.0002,120]
[351260348,1738494355236,155.11,0.00016658,30]
[351260349,1738494501989,546.82072109,0.0002,120]
[351260350,1738494600563,170.93,8.839e-05,2]
[351260370,1738494631613,-159.06,0.00010137,2]
[351260372,1738494631622,-170.93,0.00010312,2]
[351260374,1738494631632,-192.8379381,0.00011051,2]
[351260376,1738494631641,-321.7587449,0.00011073,2]
[351260378,1738494631653,-802.2412551,0.00011073,2]
[351260379,1738494631662,-1000.0,0.00011083,2]
[351260380,1738494631672,-158.31,0.0001113,2]
[351260381,1738494631681,-150.0,0.00011151,2]
[351260382,1738494631691,-150.0,0.00011151,2]
[351260383,1738494631701,-150.0,0.00011151,2]
[351260384,1738494631712,-394.06,0.00011161,2]
[351260385,1738494631721,-320.11,0.00011209,2]
[351260386,1738494631731,-882.9,0.00011556,2]
[351260387,1738494631740,-1195.86371374,0.00011752,2]
[351260388,1738494631753,-299.29663466,0.00011752,2]
[351260389,1738494631763,-170.93,0.00011785,2]
[351260390,1738494631774,-2149.16852,0.0001187,2]
[351260391,1738494631785,-150.0,0.00011899,2]
[351260392,1738494631795,-192.83793809,0.00011899,2]
[351260393,1738494631805,-508.06761322,0.00011899,2]
[351260394,1738494631814,-156.81138745,0.000119,2]
[351260395,1738494631824,-170.2643368,0.000119,2]
[351260396,1738494631834,-8115.61493439,0.000119,2]
[351260397,1738494631844,-178.00700448,0.000119,2]
[351260398,1738494631853,-156.71145318,0.000119,2]
[351260399,1738494631863,-168.17565329,0.000119,2]
[351260400,1738494631873,-283.72769033,0.00011912,2]
[351260401,1738494631883,-656.37920594,0.00011912,2]
[351260402,1738494631893,-192.29777608,0.00011912,2]
[351260403,1738494631902,-500.75313882,0.00011973,2]
[351260404,1738494631912,-500.0,0.00011973,2]
[351260405,1738494631921,-2000.0,0.00011992,2]
[351260406,1738494631931,-200.0,0.00011992,2]
[351260407,1738494631940,-200.0,0.00011992,2]
[351260408,1738494631950,-1000.0,0.00011998,2]
[351260409,1738494631963,-228.394,0.00011998,2]
[351260410,1738494631973,-3490.388,0.00011998,2]
[351260411,1738494631983,-300.0,0.00011999,2]
[351260412,1738494631994,-300.0,0.00011999,2]
[351260413,1738494632006,-300.0,0.00011999,2]
[351260414,1738494632016,-305.34106269,0.00011999,2]
[351260415,1738494632026,-609.68881399,0.00011999,2]
[351260416,1738494632037,-1000.1716,0.00011999,2]
[351260417,1738494632047,-758.9,0.00011999,2]
[351260418,1738494632057,-500.0,0.00011999,2]
[351260419,1738494632067,-152.86884484,0.00011999,2]
[351260420,1738494632077,-500.0,0.00011999,2]
[351260421,1738494632087,-500.0,0.00011999,2]
[351260423,1738494632096,-500.0,0.00011999,2]
[351260425,1738494632116,-500.0,0.00011999,2]
[351260427,1738494632125,-500.0,0.00011999,2]
[351260428,1738494632134,-500.0,0.00011999,2]
[351260429,1738494632144,-632.47771381,0.00011999,2]
[351260431,1738494632155,-500.0,0.00011999,2]
[351260432,1738494632165,-500.0,0.00011999,2]
[351260433,1738494632174,-500.0,0.00011999,2]
[351260434,1738494632187,-477.06018271,0.00011999,2]
[351260435,1738494632197,-500.0,0.00011999,2]
[351260436,1738494632207,-464.73212304,0.00011999,2]
[351260437,1738494632217,-500.0,0.00011999,2]
[351260438,1738494632227,-500.0,0.00011999,2]
[351260439,1738494632237,-500.0,0.00011999,2]
[351260440,1738494632246,-500.0,0.00011999,2]
[351260441,1738494632257,-500.0,0.00011999,2]
[351260442,1738494632267,-500.0,0.00011999,2]
[351260443,1738494632277,-500.0,0.00011999,2]
[351260444,1738494632288,-500.0,0.00011999,2]
[351260445,1738494632298,-500.0,0.00011999,2]
[351260446,1738494632308,-500.0,0.00011999,2]
[351260447,1738494632317,-500.0,0.00011999,2]
[351260448,1738494632327,-500.0,0.00011999,2]
[351260449,1738494632336,-500.0,0.00011999,2]
[351260450,1738494632345,-500.0,0.00011999,2]
[351260451,1738494632354,-500.0,0.00011999,2]
[351260452,1738494632364,-500.0,0.00011999,2]
[351260453,1738494632373,-500.0,0.00011999,2]
[351260454,1738494632383,-500.0,0.00011999,2]
[351260455,1738494632392,-500.0,0.00011999,2]
[351260456,1738494632401,-500.0,0.00011999,2]
[351260457,1738494632411,-500.0,0.00011999,2]
[351260458,1738494632422,-500.0,0.00011999,2]
[351260459,1738494632432,-500.0,0.00011999,2]
[351260460,1738494632442,-500.0,0.00011999,2]
[351260461,1738494632452,-500.0,0.00011999,2]
[351260462,1738494632462,-500.0,0.00011999,2]
[351260463,1738494632471,-500.0,0.00011999,2]
[351260464,1738494632481,-500.0,0.00011999,2]
[351260465,1738494632490,-500.0,0.00011999,2]
[351260466,1738494632500,-500.0,0.00011999,2]
[351260467,1738494632509,-500.0,0.00011999,2]
[351260468,1738494632519,-500.0,0.00011999,2]
[351260469,1738494632529,-500.0,0.00011999,2]
[351260470,1738494632540,-500.0,0.00011999,2]
[351260471,1738494632550,-500.0,0.00011999,2]
[351260472,1738494632559,-500.0,0.00011999,2]
[351260473,1738494632569,-500.0,0.00011999,2]
[351260474,1738494632579,-569.17436948,0.00011999,2]
[351260475,1738494632590,-500.0,0.00011999,2]
[351260476,1738494632600,-500.0,0.00011999,2]
[351260477,1738494632611,-500.0,0.00011999,2]
[351260478,1738494632621,-500.0,0.00011999,2]
[351260479,1738494632631,-500.0,0.00011999,2]
[351260480,1738494632642,-500.0,0.00011999,2]
[351260481,1738494632652,-500.0,0.00011999,2]
[351260482,1738494632661,-500.0,0.00011999,2]
[351260483,1738494632671,-500.0,0.00011999,2]
[351260484,1738494632680,-500.0,0.00011999,2]
[351260485,1738494632690,-500.0,0.00011999,2]
[351260486,1738494632700,-500.0,0.00011999,2]
[351260487,1738494632710,-500.0,0.00011999,2]
[351260488,1738494632720,-500.0,0.00011999,2]
[351260489,1738494632730,-500.0,0.00011999,2]
[351260490,1738494632739,-500.0,0.00011999,2]
[351260491,1738494632749,-500.0,0.00011999,2]
[351260492,1738494632758,-500.0,0.00011999,2]
[351260493,1738494632768,-500.0,0.00011999,2]
[351260495,1738494632777,-206.91743694,0.00011999,2]
[351260496,1738494632787,-500.0,0.00011999,2]
[351260497,1738494632797,-500.0,0.00011999,2]
[351260498,1738494632807,-500.0,0.00011999,2]
[351260499,1738494632817,-500.0,0.00011999,2]
[351260500,1738494632827,-500.0,0.00011999,2]
[351260501,1738494632836,-500.0,0.00011999,2]
[351260502,1738494632846,-500.0,0.00011999,2]
[351260503,1738494632855,-500.0,0.00011999,2]
[351260504,1738494632864,-500.0,0.00011999,2]
[351260505,1738494632874,-500.0,0.00011999,2]
[351260506,1738494632883,-500.0,0.00011999,2]
[351260507,1738494632892,-362.83038994,0.00012,2]
[351260508,1738494632902,-826.61514095,0.00012,2]
[351260509,1738494632911,-230694.39703484,0.00012,2]
[351260510,1738494632934,-2530.78553524,0.00012,2]
[351260511,1738494633203,-6104.89003891,0.00012,2]
[351260512,1738494633241,-74220.38529408,0.00012,2]
[351260513,1738494633254,-9981.40708331,0.00012,2]
[351260547,1738494638115,-156.71145316,0.00011902,2]
[351260549,1738494638124,-840.3742477,0.00012,2]
[351260551,1738494638135,-4217.76142392,0.00012,2]
[351260553,1738494638146,-977.95587913,0.00012,2]
[351260556,1738494638168,-11042.57984512,0.00012,2]
[351260559,1738494638187,-7947.14044728,0.00012,2]
[351260561,1738494638199,-14934.40957813,0.00012,2]